bitfinex/quotes_BTCUSD_20250101
["timestamp","ask_amount","ask_price","bid_price","bid_amount"]
[1735719274343,0.212974,93908.0,93898.0,0.07361092]
[1735719274767,0.212974,93908.0,93898.0,0.08061092]
[1735719275410,0.02771221,93907.0,93898.0,0.07361092]
[1735719275825,0.02771221,93907.0,93898.0,0.08061092]
[1735719276249,0.02771221,93907.0,93898.0,0.07761092]
[1735719276494,0.02771221,93907.0,93898.0,0.07961092]
[1735719276911,0.02771221,93907.0,93898.0,0.07761092]
[1735719277119,0.05725088,93906.0,93898.0,0.07061092]
[1735719277337,0.05725088,93906.0,93898.0,0.07361092]
[1735719277561,0.05725088,93906.0,93898.0,0.08061092]
[1735719277704,0.05725088,93906.0,93898.0,0.07061092]
[1735719277921,0.05725088,93906.0,93898.0,0.07761092]
[1735719278127,0.03631948,93905.0,93898.0,0.08061092]
[1735719278905,0.03631948,93905.0,93898.0,0.07361092]
[1735719280046,0.03631948,93905.0,93898.0,0.07061092]
[1735719280273,0.03631948,93905.0,93898.0,0.08161092]
[1735719280478,0.03631948,93905.0,93898.0,0.07361092]
[1735719280683,0.04271778,93904.0,93898.0,0.07061092]
[1735719280898,0.04271778,93904.0,93898.0,0.07861092]
[1735719281108,0.04271778,93904.0,93898.0,0.08161092]
[1735719281554,0.04271778,93904.0,93898.0,0.07861092]
[1735719281766,0.04271778,93904.0,93898.0,0.07061092]
[1735719282199,0.04271778,93904.0,93898.0,0.07961092]
[1735719282321,0.06515461,93903.0,93898.0,0.07961092]
[1735719282726,0.06515461,93903.0,93898.0,0.08261092]
[1735719283356,0.06515461,93903.0,93898.0,0.07061092]
[1735719283588,0.06515461,93903.0,93898.0,0.07961092]
[1735719283752,0.06515461,93903.0,93898.0,0.08261092]
[1735719284390,0.04674955,93902.0,93898.0,0.08261092]
[1735719285773,0.04674955,93902.0,93898.0,0.07961092]
[1735719286170,0.04674955,93902.0,93898.0,0.08361092]
[1735719286377,0.04674955,93902.0,93898.0,0.07461092]
[1735719286730,0.04674955,93902.0,93898.0,0.08361092]
[1735719288185,0.03525904,93901.0,93898.0,0.08361092]
[1735719289018,0.03525904,93901.0,93898.0,0.07961092]
[1735719289229,0.03525904,93901.0,93898.0,0.08361092]
[1735719290074,0.03525904,93901.0,93898.0,0.07461092]
[1735719290189,0.03525904,93901.0,93898.0,0.08361092]
[1735719295493,0.19220722,93907.0,93898.0,0.08361092]
[1735719296478,0.19220722,93907.0,93898.0,0.07061092]
[1735719296686,0.19220722,93907.0,93898.0,0.07361092]
[1735719296886,0.19220722,93907.0,93898.0,0.08061092]
[1735719305088,0.19220722,93906.0,93898.0,0.08061092]
[1735719306035,0.19220722,93906.0,93898.0,0.07761092]
[1735719306281,0.19220722,93906.0,93898.0,0.07061092]
[1735719306507,0.19220722,93906.0,93898.0,0.07361092]
[1735719306706,0.19220722,93906.0,93898.0,0.08161092]
[1735719315728,0.23433954,93909.0,93898.0,0.08161092]
[1735719316937,0.212969,93911.0,93898.0,0.08161092]
[1735719317210,0.212969,93911.0,93898.0,0.07361092]
[1735719317482,8.53e-05,93909.0,93898.0,0.07661092]
[1735719317649,8.53e-05,93909.0,93898.0,0.07861092]
[1735719317892,0.212974,93908.0,93898.0,0.07861092]
[1735719318199,0.212974,93908.0,93898.0,0.07661092]
[1735719318684,0.212974,93908.0,93898.0,0.07861092]
[1735719318897,0.212974,93908.0,93898.0,0.07261092]
[1735719319346,0.212974,93908.0,93898.0,0.07761092]
[1735719319571,8.53e-05,93909.0,93908.0,0.07044032]
[1735719320894,8.53e-05,93909.0,93908.0,0.07644032]
[1735719321130,8.53e-05,93909.0,93908.0,0.07844032]
[1735719324320,8.53e-05,93909.0,93908.0,0.008]
[1735719324574,0.11918653,93909.0,93908.0,0.008]
[1735719324807,0.31478653,93909.0,93908.0,0.008]
[1735719325052,1.08388053,93909.0,93908.0,0.008]
[1735719325304,0.90478053,93909.0,93908.0,0.008]
[1735719325776,0.90478053,93909.0,93908.0,0.002]
[1735719326254,0.90478053,93909.0,93898.0,0.0001706]
[1735719326484,0.362994,93899.0,93898.0,0.0001706]
[1735719326723,1.312505,93899.0,93898.0,0.0001706]
[1735719326940,1.343402,93899.0,93898.0,0.0001706]
[1735719329211,1.343402,93899.0,93898.0,0.0051706]
[1735719331181,0.84702,93899.0,93898.0,0.0051706]
[1735719331401,0.546204,93899.0,93898.0,0.0051706]
[1735719332083,0.37492317,93899.0,93898.0,0.0051706]
[1735719332304,0.55813317,93899.0,93898.0,0.0051706]
[1735719332564,0.30154659,93899.0,93898.0,0.0051706]
[1735719333452,0.19513917,93899.0,93898.0,0.0051706]
[1735719333585,0.40813317,93899.0,93898.0,0.0051706]
[1735719333813,0.22492317,93899.0,93898.0,0.0051706]
[1735719334001,0.39788217,93899.0,93898.0,0.0051706]
[1735719335562,0.22492317,93899.0,93898.0,0.0051706]
[1735719337990,0.57611359,93899.0,93898.0,0.0051706]
[1735719341045,0.57611359,93899.0,93891.0,0.0001706]
[1735719341285,0.21301,93892.0,93891.0,0.00022054]
[1735719341757,0.22492251,93892.0,93891.0,0.00022054]
[1735719342280,0.2966659,93892.0,93891.0,0.00122054]
[1735719342516,0.8070199,93892.0,93891.0,0.00522054]
[1735719342728,1.4832229,93892.0,93891.0,0.00422054]
[1735719342940,1.4832229,93892.0,93891.0,0.00322054]
[1735719343141,1.4832229,93892.0,93891.0,0.01022054]
[1735719343568,1.4832229,93892.0,93891.0,0.00322054]
[1735719343802,1.4832229,93892.0,93891.0,0.00622054]
[1735719344028,1.4832229,93892.0,93891.0,0.00322054]
[1735719345408,1.4832229,93892.0,93891.0,0.00422054]
[1735719346108,1.4832229,93892.0,93891.0,0.00122054]
[1735719346323,1.4832229,93892.0,93891.0,0.00022054]
[1735719348746,1.4842229,93892.0,93891.0,0.00022054]
[1735719349152,1.4862229,93892.0,93891.0,0.00022054]
[1735719349362,1.4832229,93892.0,93891.0,0.00022054]
[1735719349800,1.4872229,93892.0,93891.0,0.00022054]
[1735719350171,1.4882229,93892.0,93891.0,0.00022054]
[1735719350586,1.5668229,93892.0,93891.0,0.00022054]
[1735719351847,1.5658229,93892.0,93891.0,0.00022054]
[1735719352014,1.5668229,93892.0,93891.0,0.00022054]
[1735719352401,1.5698229,93892.0,93891.0,0.00022054]
[1735719352625,1.5688229,93892.0,93891.0,0.00022054]
[1735719352872,1.5668229,93892.0,93891.0,0.00022054]
[1735719353408,1.5658229,93892.0,93891.0,0.00022054]
[1735719353729,1.5688229,93892.0,93891.0,0.00022054]
[1735719353929,1.5668229,93892.0,93891.0,0.00022054]
[1735719354453,1.5698229,93892.0,93891.0,0.00022054]
[1735719355039,1.5688229,93892.0,93891.0,0.00022054]
[1735719355241,1.5708229,93892.0,93891.0,0.00022054]
[1735719355891,1.5688229,93892.0,93891.0,0.00022054]
[1735719356085,1.5708229,93892.0,93891.0,0.00022054]
[1735719356285,1.5678229,93892.0,93891.0,0.00022054]
[1735719356515,1.5728229,93892.0,93891.0,0.00022054]
[1735719358146,1.67680922,93892.0,93891.0,0.00022054]
[1735719358370,1.67480922,93892.0,93891.0,0.00022054]
[1735719358578,1.67680922,93892.0,93891.0,0.00022054]
[1735719359169,1.66980922,93892.0,93891.0,0.00022054]
[1735719359374,1.67180922,93892.0,93891.0,0.00022054]
[1735719359581,1.67680922,93892.0,93891.0,0.00022054]
[1735719359782,1.67180922,93892.0,93891.0,0.00022054]
[1735719360222,1.91702005,93892.0,93891.0,0.00022054]
[1735719361294,1.67680922,93892.0,93891.0,0.00022054]
[1735719361830,2.16714122,93892.0,93891.0,0.00022054]
[1735719362033,2.40735205,93892.0,93891.0,0.00022054]
[1735719368435,2.02778622,93892.0,93891.0,0.00022054]
[1735719368654,1.98291122,93892.0,93891.0,0.00022054]
[1735719368837,1.92358522,93892.0,93891.0,0.00022054]
[1735719382506,1.91858522,93892.0,93891.0,0.00022054]
[1735719382732,1.91658522,93892.0,93891.0,0.00022054]
[1735719382885,1.92358522,93892.0,93891.0,0.00022054]
[1735719383089,1.91858522,93892.0,93891.0,0.00022054]
[1735719383333,2.02158522,93892.0,93891.0,0.00022054]
[1735719383778,2.02358522,93892.0,93891.0,0.00022054]
[1735719384777,2.26714122,93892.0,93891.0,0.00022054]
[1735719386240,2.2967009,93892.0,93891.0,5.4e-07]
[1735719386458,1.80644868,93891.0,93890.0,1.4e-07]
[1735719386670,0.48753232,93891.0,93890.0,1.4e-07]
[1735719386874,0.49743806,93891.0,93890.0,1.4e-07]
[1735719387677,0.49943806,93891.0,93890.0,1.4e-07]
[1735719388750,0.78798983,93891.0,93890.0,1.4e-07]
[1735719389172,0.79298983,93891.0,93890.0,1.4e-07]
[1735719390490,0.50443806,93891.0,93890.0,1.4e-07]
[1735719393573,0.50443806,93891.0,93887.0,7.4e-07]
[1735719393574,0.02955968,93888.0,93887.0,7.4e-07]
[1735719393901,0.2934268,93888.0,93887.0,7.4e-07]
[1735719395482,0.2954268,93888.0,93887.0,7.4e-07]
[1735719396037,0.2994268,93888.0,93887.0,7.4e-07]
[1735719410171,0.26986712,93888.0,93887.0,7.4e-07]
[1735719411095,0.29743118,93888.0,93887.0,7.4e-07]
[1735719413967,0.29751648,93888.0,93887.0,7.4e-07]
[1735719419089,0.29151648,93888.0,93887.0,7.4e-07]
[1735719419298,0.29551648,93888.0,93887.0,7.4e-07]
[1735719419528,0.29151648,93888.0,93887.0,7.4e-07]
[1735719419937,0.29551648,93888.0,93887.0,7.4e-07]
[1735719420402,0.29751648,93888.0,93887.0,7.4e-07]
[1735719420975,0.29551648,93888.0,93887.0,7.4e-07]
[1735719421180,0.29751648,93888.0,93887.0,7.4e-07]
[1735719421611,0.29151648,93888.0,93887.0,7.4e-07]
[1735719422045,0.29751648,93888.0,93887.0,7.4e-07]
[1735719423286,0.29351648,93888.0,93887.0,7.4e-07]
[1735719423652,0.29151648,93888.0,93887.0,7.4e-07]
[1735719423880,0.29351648,93888.0,93887.0,7.4e-07]
[1735719424282,0.29151648,93888.0,93887.0,7.4e-07]
[1735719424680,0.29851648,93888.0,93887.0,7.4e-07]
[1735719424906,0.29351648,93888.0,93887.0,7.4e-07]
[1735719425366,0.29751648,93888.0,93887.0,7.4e-07]
[1735719426385,0.29351648,93888.0,93887.0,7.4e-07]
[1735719426596,0.29151648,93888.0,93887.0,7.4e-07]
[1735719427029,0.29351648,93888.0,93887.0,7.4e-07]
[1735719427975,0.29751648,93888.0,93887.0,7.4e-07]
[1735719446451,0.37561648,93888.0,93887.0,7.4e-07]
[1735719447341,0.37361648,93888.0,93887.0,7.4e-07]
[1735719448075,0.36961648,93888.0,93887.0,7.4e-07]
[1735719448536,0.37961648,93888.0,93887.0,0.00100074]
[1735719448962,1.90350548,93888.0,93887.0,0.00100074]
[1735719449416,1.90650548,93888.0,93887.0,0.00100074]
[1735719449632,1.83453695,93888.0,93887.0,0.00100074]
[1735719449853,1.80697289,93888.0,93887.0,0.00100074]
[1735719453578,1.72887289,93888.0,93887.0,0.00100074]
[1735719461065,1.47117371,93888.0,93887.0,0.00100074]
[1735719461296,1.47940463,93888.0,93887.0,0.00100074]
[1735719463474,1.62940463,93888.0,93887.0,0.00100074]
[1735719464228,1.70308832,93888.0,93887.0,0.00100074]
[1735719465277,1.62940463,93888.0,93887.0,0.00100074]
[1735719467853,1.47940463,93888.0,93887.0,0.00100074]
[1735719470168,1.5986236,93888.0,93887.0,0.00100074]
[1735719471241,1.5987089,93888.0,93887.0,0.00100074]
[1735719472228,1.6764089,93888.0,93887.0,0.00100074]
[1735719472427,1.78039522,93888.0,93887.0,0.00100074]
[1735719474686,2.10523598,93888.0,93887.0,0.00100074]
[1735719475630,2.00124966,93888.0,93887.0,0.00100074]
[1735719476511,1.6764089,93888.0,93887.0,0.00100074]
[1735719476983,1.5987089,93888.0,93887.0,0.00100074]
[1735719483988,1.41373253,93888.0,93887.0,0.00100074]
[1735719487374,1.56373253,93888.0,93887.0,0.00100074]
[1735719488443,1.43018653,93888.0,93887.0,0.00100074]
[1735719488643,0.15831453,93888.0,93887.0,0.00100074]
[1735719488868,1.43018653,93888.0,93887.0,0.00100074]
[1735719489193,1.35092853,93888.0,93887.0,0.00100074]
[1735719489434,1.33382553,93888.0,93887.0,0.00100074]
[1735719490130,1.31238953,93888.0,93887.0,0.00100074]
[1735719490342,1.41637585,93888.0,93887.0,0.00100074]
[1735719494511,1.39764885,93888.0,93887.0,0.00100074]
[1735719497869,1.47534885,93888.0,93887.0,0.00100074]
[1735719501695,1.47734885,93888.0,93887.0,0.00100074]
[1735719501904,1.47734885,93888.0,93887.0,7.4e-07]
[1735719502106,0.34000085,93888.0,93887.0,7.4e-07]
[1735719502515,0.34200085,93888.0,93887.0,7.4e-07]
[1735719503334,0.34700085,93888.0,93887.0,0.00100074]
[1735719503520,0.34700085,93888.0,93887.0,7.4e-07]
[1735719503521,1.61387285,93888.0,93887.0,7.4e-07]
[1735719503731,0.34200085,93888.0,93887.0,7.4e-07]
[1735719503937,0.34700085,93888.0,93887.0,7.4e-07]
[1735719505630,0.34500085,93888.0,93887.0,7.4e-07]
[1735719506021,0.34700085,93888.0,93887.0,7.4e-07]
[1735719506223,0.34200085,93888.0,93887.0,7.4e-07]
[1735719506422,0.34000085,93888.0,93887.0,7.4e-07]
[1735719506644,0.34500085,93888.0,93887.0,7.4e-07]
[1735719506801,0.34200085,93888.0,93887.0,7.4e-07]
[1735719507158,0.34700085,93888.0,93887.0,7.4e-07]
[1735719514812,0.67184161,93888.0,93887.0,7.4e-07]
[1735719515732,0.34700085,93888.0,93887.0,7.4e-07]
[1735719515973,0.48054685,93888.0,93887.0,7.4e-07]
[1735719519574,0.47854685,93888.0,93887.0,7.4e-07]
[1735719519844,0.80282337,93888.0,93887.0,7.4e-07]
[1735719520048,0.79782337,93888.0,93887.0,7.4e-07]
[1735719520255,0.80282337,93888.0,93887.0,0.00100074]
[1735719520948,2.07669537,93888.0,93887.0,0.00100074]
[1735719521394,2.07469537,93888.0,93887.0,0.00100074]
[1735719521636,1.75041885,93888.0,93887.0,0.00100074]
[1735719521860,1.75341885,93888.0,93887.0,0.00100074]
[1735719522614,1.77641885,93888.0,93887.0,0.00100074]
[1735719523076,1.77641885,93888.0,93887.0,7.4e-07]
[1735719523528,0.50454685,93888.0,93887.0,7.4e-07]
[1735719524459,0.82877083,93888.0,93887.0,7.4e-07]
[1735719525463,0.92877083,93888.0,93887.0,7.4e-07]
[1735719525882,0.60454685,93888.0,93887.0,7.4e-07]
[1735719529777,0.60454685,93888.0,93887.0,3.4e-07]
[1735719533564,0.59654685,93888.0,93887.0,3.4e-07]
[1735719533767,0.60154685,93888.0,93887.0,3.4e-07]
[1735719534030,0.27955968,93878.0,93877.0,9.4e-07]
[1735719534251,0.66543397,93878.0,93877.0,5.088e-05]
[1735719534485,0.67227433,93878.0,93877.0,5.088e-05]
[1735719535366,1.94414633,93878.0,93877.0,5.088e-05]
[1735719536347,1.95114633,93878.0,93877.0,5.088e-05]
[1735719537753,1.85114633,93878.0,93877.0,5.088e-05]
[1735719537980,1.59284633,93878.0,93877.0,5.088e-05]
[1735719539214,1.54700036,93878.0,93877.0,5.088e-05]
[1735719544336,1.23159664,93878.0,93877.0,5.088e-05]
[1735719544490,1.15439868,93878.0,93877.0,5.088e-05]
[1735719544695,1.36744068,93878.0,93877.0,5.088e-05]
[1735719546557,1.51744068,93878.0,93877.0,5.088e-05]
[1735719546787,1.621427,93878.0,93877.0,5.088e-05]
[1735719550565,0.607855,93878.0,93877.0,5.088e-05]
[1735719550722,1.879727,93878.0,93877.0,5.088e-05]
[1735719553795,1.8798123,93878.0,93877.0,5.088e-05]
[1735719555713,1.8798123,93878.0,93877.0,8.8e-07]
[1735719555892,0.6079403,93878.0,93877.0,8.8e-07]
[1735719558200,0.50395398,93878.0,93877.0,8.8e-07]
[1735719561864,0.60395398,93878.0,93877.0,8.8e-07]
[1735719562978,0.50395398,93878.0,93877.0,8.8e-07]
[1735719563206,0.60395398,93878.0,93877.0,8.8e-07]
[1735719564962,0.50395398,93878.0,93877.0,8.8e-07]
[1735719565202,0.7079403,93878.0,93877.0,8.8e-07]
[1735719566770,0.7079403,93878.0,93877.0,0.00017148]
[1735719566886,1.9798123,93878.0,93877.0,0.00017148]
[1735719567085,0.7079403,93878.0,93877.0,0.00017148]
[1735719567358,1.9798123,93878.0,93877.0,0.00017148]
[1735719567610,1.9298123,93878.0,93877.0,0.00017148]
[1735719570650,2.4298123,93878.0,93877.0,0.00017148]
[1735719572746,2.3298123,93878.0,93877.0,4.8e-07]
[1735719572873,1.0579403,93878.0,93877.0,4.8e-07]
[1735719576174,0.86374245,93878.0,93877.0,4.8e-07]
[1735719576552,0.97279813,93878.0,93877.0,4.8e-07]
[1735719577717,1.26299147,93878.0,93877.0,4.8e-07]
[1735719578203,1.26099147,93878.0,93877.0,4.8e-07]
[1735719578401,0.97479813,93878.0,93877.0,4.8e-07]
[1735719583672,1.05769813,93878.0,93877.0,4.8e-07]
[1735719583877,1.16168445,93878.0,93877.0,4.8e-07]
[1735719595180,1.09548025,93878.0,93877.0,4.8e-07]
[1735719597611,1.07878445,93878.0,93877.0,4.8e-07]
[1735719600694,0.57878445,93878.0,93877.0,4.8e-07]
[1735719602549,0.47479813,93878.0,93877.0,4.8e-07]
[1735719603036,0.70199813,93878.0,93877.0,4.8e-07]
[1735719603841,0.69999813,93878.0,93877.0,4.8e-07]
[1735719604229,0.70199813,93878.0,93877.0,4.8e-07]
[1735719604424,0.70199813,93878.0,93877.0,0.00100048]
[1735719604682,2.08185645,93878.0,93877.0,4.8e-07]
[1735719604885,0.80998445,93878.0,93877.0,4.8e-07]
[1735719605865,0.81198445,93878.0,93877.0,4.8e-07]
[1735719606286,0.70799813,93878.0,93877.0,4.8e-07]
[1735719614181,0.70799813,93878.0,93877.0,8e-08]
[1735719618959,0.73099813,93878.0,93877.0,8e-08]
[1735719621179,0.58079813,93878.0,93877.0,8e-08]
[1735719621439,0.39350891,93878.0,93877.0,8e-08]
[1735719621602,0.4854667,93878.0,93877.0,0.08050008]
[1735719622279,1.7573387,93878.0,93877.0,0.08050008]
[1735719622515,1.7406416,93878.0,93877.0,0.08050008]
[1735719622840,1.8406416,93878.0,93877.0,0.08050008]
[1735719623300,1.7406416,93878.0,93877.0,0.08050008]
[1735719623730,1.8406416,93878.0,93877.0,0.08050008]
[1735719625048,2.3406416,93878.0,93877.0,0.08050008]
[1735719626660,2.25733784,93878.0,93877.0,0.08050008]
[1735719627457,2.2406416,93878.0,93877.0,0.08050008]
[1735719628343,2.3406416,93878.0,93877.0,0.08050008]
[1735719628570,2.2406416,93878.0,93877.0,0.08050008]
[1735719628777,2.3406416,93878.0,93877.0,0.08050008]
[1735719630345,2.3406416,93878.0,93877.0,8e-08]
[1735719630584,1.0687696,93878.0,93877.0,8e-08]
[1735719631747,1.07338251,93878.0,93877.0,8e-08]
[1735719636290,1.09007931,93878.0,93877.0,8e-08]
[1735719637625,1.07338251,93878.0,93877.0,8e-08]
[1735719640600,1.09007815,93878.0,93877.0,8e-08]
[1735719641929,1.07338251,93878.0,93877.0,8e-08]
[1735719642373,0.363069,93866.0,93865.0,0.045]
[1735719642576,1.634941,93866.0,93865.0,0.04504991]
[1735719642774,1.64523498,93866.0,93865.0,0.04504991]
[1735719644664,1.64623498,93866.0,93865.0,0.04504991]
[1735719644869,2.2502213,93866.0,93865.0,0.04504991]
[1735719646070,2.2669173,93866.0,93865.0,0.04504991]
[1735719651027,2.2669173,93866.0,93865.0,0.04522051]
[1735719652712,0.9950453,93866.0,93865.0,0.04522051]
[1735719653114,2.2669173,93866.0,93865.0,0.00022051]
[1735719653842,2.2502213,93866.0,93865.0,0.00022051]
[1735719654897,1.8561013,93866.0,93865.0,0.00022051]
[1735719656593,1.33733198,93866.0,93865.0,0.00022051]
[1735719657124,1.35402786,93866.0,93865.0,0.00022051]
[1735719658374,1.33733198,93866.0,93865.0,0.00022051]
[1735719661415,1.35402794,93866.0,93865.0,0.00022051]
[1735719661994,1.35302794,93866.0,93865.0,0.00022051]
[1735719662454,1.45701426,93866.0,93865.0,0.00022051]
[1735719662674,1.4403183,93866.0,93865.0,0.00022051]
[1735719662892,1.4403183,93866.0,93865.0,0.00222051]
[1735719663371,1.4403183,93866.0,93865.0,0.00122051]
[1735719663600,1.4403183,93866.0,93865.0,0.00222051]
[1735719665590,0.9773493,93866.0,93865.0,0.00222051]
[1735719665812,1.6960253,93866.0,93865.0,0.00222051]
[1735719666013,1.57737783,93866.0,93865.0,0.00222051]
[1735719667149,1.56068198,93866.0,93865.0,0.00222051]
[1735719667558,1.50795298,93866.0,93865.0,0.00222051]
[1735719675124,1.52464887,93866.0,93865.0,0.00222051]
[1735719675998,0.89005887,93866.0,93865.0,0.00222051]
[1735719676196,1.55137987,93866.0,93865.0,0.00222051]
[1735719678393,1.53468398,93866.0,93865.0,0.00222051]
[1735719680795,1.24568896,93866.0,93865.0,0.00222051]
[1735719681753,1.38468398,93866.0,93865.0,0.00222051]
[1735719682868,1.77481489,93866.0,93865.0,0.00222051]
[1735719687327,1.79151096,93866.0,93865.0,0.00222051]
[1735719691109,1.79151096,93866.0,93865.0,0.00122051]
[1735719691408,1.79151096,93866.0,93865.0,0.00222051]
[1735719691871,1.79151096,93866.0,93865.0,0.00122051]
[1735719692006,1.55138005,93866.0,93865.0,0.00022051]
[1735719692203,1.55138005,93866.0,93865.0,0.00122051]
[1735719692409,1.55138005,93866.0,93865.0,0.00222051]
[1735719692622,1.55138005,93866.0,93865.0,0.00022051]
[1735719692823,1.55138005,93866.0,93865.0,0.00222051]
[1735719693031,1.55138005,93866.0,93865.0,0.00322051]
[1735719693231,1.55138005,93866.0,93865.0,0.00122051]
[1735719693434,1.55138005,93866.0,93865.0,0.00322051]
[1735719693792,1.55138005,93866.0,93865.0,0.00122051]
[1735719694421,1.55138005,93866.0,93865.0,0.00022051]
[1735719694629,1.55138005,93866.0,93865.0,0.00222051]
[1735719695207,1.55138005,93866.0,93865.0,0.00322051]
[1735719695478,1.55138005,93866.0,93865.0,0.00522051]
[1735719695787,1.55138005,93866.0,93865.0,0.00222051]
[1735719695982,1.55138005,93866.0,93865.0,0.00322051]
[1735719696221,1.55138005,93866.0,93865.0,0.00222051]
[1735719696446,1.55138005,93866.0,93865.0,0.00622051]
[1735719697693,1.55138005,93866.0,93865.0,0.00422051]
[1735719697875,1.55138005,93866.0,93865.0,0.00622051]
[1735719698342,1.55138005,93866.0,93865.0,0.00222051]
[1735719698540,1.55138005,93866.0,93865.0,0.00622051]
[1735719699403,1.55146535,93866.0,93865.0,0.00622051]
[1735719700554,1.83945237,93866.0,93865.0,0.00622051]
[1735719700978,1.8227563,93866.0,93865.0,0.00622051]
[1735719702311,1.53476928,93866.0,93865.0,0.00622051]
[1735719708393,1.28057561,93866.0,93865.0,0.00622051]
[1735719708596,1.56856263,93866.0,93865.0,0.00622051]
[1735719709511,1.53197461,93866.0,93865.0,0.00622051]
[1735719718233,1.00583724,93866.0,93865.0,0.00622051]
[1735719721281,1.10982356,93866.0,93865.0,0.00422051]
[1735719721484,1.10982356,93866.0,93865.0,0.00122051]
[1735719721702,1.19302356,93866.0,93865.0,0.00122051]
[1735719721953,1.19302356,93866.0,93865.0,0.00322051]
[1735719727373,1.08903724,93866.0,93865.0,0.00322051]
[1735719729711,1.37702426,93866.0,93865.0,0.00322051]
[1735719730216,1.37702426,93866.0,93865.0,0.00222051]
[1735719730446,1.98757561,93866.0,93865.0,0.00322051]
[1735719730666,1.69958859,93866.0,93865.0,0.00322051]
[1735719731116,1.69958859,93866.0,93865.0,0.00022051]
[1735719731339,1.69958859,93866.0,93865.0,0.00222051]
[1735719731574,1.80357491,93866.0,93865.0,0.00222051]
[1735719732889,2.09156193,93866.0,93865.0,0.00222051]
[1735719735493,1.80357491,93866.0,93865.0,0.00222051]
[1735719737328,1.52150883,93866.0,93865.0,0.00222051]
[1735719737835,1.73457783,93866.0,93865.0,0.00222051]
[1735719750422,1.63059151,93866.0,93865.0,0.00222051]
[1735719752602,0.38485751,93866.0,93865.0,0.00222051]
[1735719752813,1.63059151,93866.0,93865.0,0.00222051]
[1735719762151,1.63059151,93866.0,93865.0,0.00122051]
[1735719762360,1.63059151,93866.0,93865.0,0.00222051]
[1735719762557,1.63059151,93866.0,93865.0,0.00122051]
[1735719762760,1.73457783,93866.0,93865.0,0.00122051]
[1735719762967,1.73457783,93866.0,93865.0,0.00222051]
[1735719765597,1.65137783,93866.0,93865.0,0.00222051]
[1735719765821,1.54739151,93866.0,93865.0,0.00222051]
[1735719766907,0.80788551,93866.0,93865.0,0.00222051]
[1735719774079,0.30165751,93866.0,93865.0,0.00222051]
[1735719774198,0.93941751,93866.0,93865.0,0.00222051]
[1735719774444,0.93752851,93866.0,93865.0,0.00222051]
[1735719783730,1.03513646,93866.0,93865.0,0.00222051]
[1735719789270,1.11713646,93866.0,93865.0,0.00222051]
[1735719790546,1.72699946,93866.0,93865.0,0.00222051]
[1735719801215,0.48126546,93866.0,93865.0,0.00222051]
[1735719801591,1.72699946,93866.0,93865.0,0.00222051]
[1735719803946,1.72699946,93866.0,93865.0,0.00122051]
[1735719804592,1.72699946,93866.0,93865.0,0.00222051]
[1735719806644,1.39919875,93866.0,93865.0,0.00222051]
[1735719806830,1.40498298,93866.0,93865.0,0.00222051]
[1735719807810,1.61805198,93866.0,93865.0,0.00222051]
[1735719808460,1.54658723,93866.0,93865.0,0.00222051]
[1735719808907,1.64658723,93866.0,93865.0,0.00222051]
[1735719809774,1.6632837,93866.0,93865.0,0.00222051]
[1735719811035,1.64658723,93866.0,93865.0,0.00222051]
[1735719814617,1.64667253,93866.0,93865.0,0.00222051]
[1735719814887,1.75065885,93866.0,93865.0,0.00222051]
[1735719815318,1.76735528,93866.0,93865.0,0.00222051]
[1735719818792,1.75065885,93866.0,93865.0,0.00222051]
[1735719822165,1.75065885,93866.0,93865.0,0.00122051]
[1735719822371,1.75065885,93866.0,93865.0,0.00222051]
[1735719823328,2.03864587,93866.0,93865.0,0.00222051]
[1735719823539,2.03864587,93866.0,93865.0,0.00122051]
[1735719823745,2.03864587,93866.0,93865.0,0.00222051]
[1735719825209,1.93465955,93866.0,93865.0,0.00222051]
[1735719827045,1.64667253,93866.0,93865.0,0.00222051]
[1735719827603,1.66336944,93866.0,93865.0,0.00222051]
[1735719828016,1.95135646,93866.0,93865.0,0.00222051]
[1735719829094,1.66336944,93866.0,93865.0,0.00222051]
[1735719830516,1.76735576,93866.0,93865.0,0.00222051]
[1735719831786,1.95135646,93866.0,93865.0,0.00222051]
[1735719834170,1.63136944,93866.0,93865.0,0.00222051]
[1735719835263,1.61467253,93866.0,93865.0,0.00222051]
[1735719835987,1.90268566,93866.0,93865.0,0.00222051]
[1735719836788,0.65695166,93866.0,93865.0,0.00222051]
[1735719837001,1.61467253,93866.0,93865.0,0.00222051]
[1735719837230,0.36893853,93866.0,93865.0,0.00222051]
[1735719837355,1.61467253,93866.0,93865.0,0.00222051]
[1735719837584,0.36893853,93866.0,93865.0,0.00222051]
[1735719837790,1.61467253,93866.0,93865.0,0.00222051]
[1735719838047,0.36893853,93866.0,93865.0,0.00222051]
[1735719838251,1.61467253,93866.0,93865.0,0.00222051]
[1735719838864,1.91937515,93866.0,93865.0,0.00222051]
[1735719839280,2.00666463,93866.0,93865.0,0.00222051]
[1735719840089,2.00666463,93866.0,93865.0,0.00122051]
[1735719840286,1.90267831,93866.0,93865.0,0.00122051]
[1735719840488,1.90467831,93866.0,93865.0,0.00122051]
[1735719840732,1.90267831,93866.0,93865.0,0.00022051]
[1735719841039,1.90467831,93866.0,93865.0,0.00022051]
[1735719841263,1.61667253,93866.0,93865.0,0.00022051]
[1735719842429,1.63336949,93866.0,93865.0,0.00022051]
[1735719843558,1.61667253,93866.0,93865.0,0.00022051]
[1735719846789,1.69967253,93866.0,93865.0,0.00022051]
[1735719847021,1.80365885,93866.0,93865.0,0.00022051]
[1735719847249,1.61667253,93866.0,93865.0,0.00022051]
[1735719848019,1.63336945,93866.0,93865.0,0.00022051]
[1735719848219,1.61667253,93866.0,93865.0,0.00022051]
[1735719851303,1.63336944,93866.0,93865.0,0.00022051]
[1735719851624,1.73735576,93866.0,93865.0,0.00022051]
[1735719852344,1.72065885,93866.0,93865.0,0.00022051]
[1735719856781,1.73735572,93866.0,93865.0,0.00022051]
[1735719857643,1.72065885,93866.0,93865.0,0.00022051]
[1735719859800,1.61667253,93866.0,93865.0,0.00022051]
[1735719860787,1.6333694,93866.0,93865.0,0.00022051]
[1735719862453,1.61667253,93866.0,93865.0,0.00022051]
[1735719866586,0.37093853,93866.0,93865.0,0.00022051]
[1735719867151,1.61667253,93866.0,93865.0,0.00022051]
[1735719867357,1.659988,93866.0,93865.0,0.00022051]
[1735719869367,1.61667253,93866.0,93865.0,0.00022051]
[1735719870654,1.3978193,93866.0,93865.0,0.00022051]
[1735719870883,1.40263683,93866.0,93865.0,0.00022051]
[1735719871403,1.41933364,93866.0,93865.0,0.00022051]
[1735719871615,1.61570583,93866.0,93865.0,0.00022051]
[1735719871875,1.46864183,93866.0,93865.0,0.00022051]
[1735719872804,1.46664183,93866.0,93865.0,0.00022051]
[1735719874440,1.48333843,93866.0,93865.0,0.00022051]
[1735719874655,1.48533843,93866.0,93865.0,0.00022051]
[1735719876499,1.58932475,93866.0,93865.0,0.00022051]
[1735719876965,1.48533843,93866.0,93865.0,0.00022051]
[1735719877362,1.57495343,93866.0,93865.0,0.00022051]
[1735719877657,1.55825683,93866.0,93865.0,0.00022051]
[1735719882223,1.43890283,93866.0,93865.0,0.00022051]
[1735719884460,1.43690283,93866.0,93865.0,0.00022051]
[1735719884860,1.43790283,93866.0,93865.0,0.00022051]
[1735719885535,1.54188915,93866.0,93865.0,0.00022051]
[1735719888079,0.47295815,93866.0,93865.0,0.00022051]
[1735719889084,1.71869215,93866.0,93865.0,0.00022051]